lending/lending_fUSD_20250418
["ID","MTS","AMOUNT","RATE_DAILY","PERIOD"]
[358353836,1744980442157,-174.986,0.00065261,120]
[358353837,1744980442178,-1111.55025667,0.00065261,120]
[358353838,1744980447095,-328.44974333,0.00065261,120]
[358353839,1744980447117,-762.08710521,0.00065261,120]
[358353840,1744980454092,-518.91289479,0.00065261,120]
[358353841,1744980454117,-368.38877714,0.000659,32]
[358353842,1744980454141,-368.38877686,0.00066521,32]
[358353843,1744980454164,-1148.29,0.0006657,2]
[358353844,1744980454187,-368.38877686,0.00067141,33]
[358353845,1744980454208,-500.0,0.00067164,120]
[358353846,1744980454233,-350.0,0.0006737,111]
[358353847,1744980454256,-368.38877686,0.00067762,33]
[358353848,1744980454280,-1000.0,0.00068009,120]
[358353849,1744980454302,-614.69677196,0.00068261,120]
[358353863,1744980631980,-441.681,0.00049035,2]
[358353874,1744980632140,-58.319,0.00049035,2]
[358353875,1744980632149,-250.0,0.00053938,2]
[358353876,1744980632159,-361.92,0.00068009,120]
[358353877,1744980632169,-189.09914953,0.00068161,2]
[358353878,1744980632178,-947.93627734,0.00068192,2]
[358353879,1744980632188,-825.30322804,0.00068261,120]
[358353880,1744980632197,-1281.0,0.00068261,120]
[358353881,1744980632207,-200.70097737,0.00068393,2]
[358353882,1744980632216,-295.71,0.00068406,2]
[358353883,1744980632225,-1160.53,0.00068471,30]
[358353884,1744980632235,-259.0,0.00068492,20]
[358353885,1744980632244,-1000.0,0.00068493,120]
[358353886,1744980632254,-838.39346766,0.00068493,120]
[358353887,1744980632263,-152.68088772,0.00068493,15]
[358353888,1744980632273,-677.7287,0.00068504,2]
[358353889,1744980632283,-500.0,0.00068716,120]
[358353890,1744980632295,-250.0,0.00068765,120]
[358353891,1744980632304,-550.63116614,0.00068834,2]
[358353894,1744980637893,-231.502,0.00065261,120]
[358353895,1744980637903,-159.67692225,0.00068834,2]
[358353896,1744980638161,-437.98191161,0.00068834,2]
[358353897,1744980638171,-176.89,0.00068892,2]
[358353898,1744980638180,-319.27027353,0.000689,34]
[358353899,1744980638191,-15978.4861879,0.0006899,2]
[358353900,1744980638203,-1126.57400896,0.0006899,2]
[358353916,1744980639848,-163.70924461,0.00068989,120]
[358353917,1744980639858,-400.90248585,0.0006899,2]
[358353918,1744980639912,-687.24606642,0.0006899,2]
[358353919,1744980639923,-1301.911185,0.0006899,2]
[358353920,1744980639935,-403.20794844,0.0006899,2]
[358353933,1744980642869,-177.655,0.00065261,120]
[358353934,1744980642908,-250.0,0.00065261,120]
[358353935,1744980642918,-44.87290549,0.00068261,120]
[358353936,1744980642933,-105.12709451,0.00068261,120]
[358353937,1744980642942,-150.0,0.00068261,120]
[358353938,1744980642952,-4001.67211743,0.0006899,2]
[358353939,1744980642961,-533.183,0.00069,120]
[358353940,1744980642971,-491.0,0.00069,120]
[358353941,1744980642981,-20000.0,0.00069,120]
[358353942,1744980642990,-500.0,0.00069,120]
[358353943,1744980643000,-152.89,0.00069031,120]
[358353944,1744980643009,-319.27027327,0.00069417,34]
[358353945,1744980643018,-500.0,0.000697,2]
[358353946,1744980643027,-491.0,0.00069726,120]
[358353947,1744980643037,-1000.0,0.00069799,30]
[358353949,1744980643046,-550.0,0.00069898,12]
[358353950,1744980643055,-1163.84,0.00069898,2]
[358353952,1744980643065,-492.90248942,0.00069899,120]
[358353954,1744980643074,-350.0,0.00069899,120]
[358353956,1744980643083,-500.0,0.00069899,120]
[358353958,1744980643092,-500.0,0.00069899,120]
[358353960,1744980643101,-500.0,0.00069899,120]
[358353962,1744980643111,-500.0,0.00069899,120]
[358353964,1744980643120,-889.18,0.00069899,120]
[358353966,1744980643129,-500.0,0.00069899,120]
[358353968,1744980643139,-500.0,0.00069899,120]
[358353970,1744980643150,-1000.0,0.000699,14]
[358353971,1744980643161,-319.27027327,0.00069934,35]
[358353973,1744980643171,-1026.0344484,0.0006997,90]
[358353975,1744980643180,-500.0,0.00069991,120]
[358353977,1744980643190,-500.0,0.00069991,120]
[358353979,1744980643199,-500.0,0.00069991,120]
[358353981,1744980643208,-500.0,0.00069991,120]
[358353984,1744980643217,-500.0,0.00069991,120]
[358353986,1744980643226,-500.0,0.00069991,120]
[358353988,1744980643236,-500.0,0.00069991,120]
[358353991,1744980643245,-500.0,0.00069991,120]
[358353994,1744980643254,-500.0,0.00069991,120]
[358353996,1744980643263,-500.0,0.00069991,120]
[358353998,1744980643272,-500.0,0.00069991,120]
[358354000,1744980643281,-500.0,0.00069991,120]
[358354002,1744980643294,-500.0,0.00069991,120]
[358354004,1744980643303,-500.0,0.00069992,2]
[358354006,1744980643312,-500.0,0.00069992,120]
[358354008,1744980643322,-1000.0,0.00069992,120]
[358354010,1744980643332,-500.0,0.00069992,120]
[358354012,1744980643342,-500.0,0.00069992,120]
[358354014,1744980643350,-500.0,0.00069992,120]
[358354016,1744980643360,-500.0,0.00069992,120]
[358354018,1744980643371,-500.0,0.00069992,120]
[358354020,1744980643380,-448.60101607,0.00069992,120]
[358354022,1744980643389,-500.0,0.00069992,120]
[358354024,1744980643398,-500.0,0.00069992,120]
[358354026,1744980643407,-500.0,0.00069992,120]
[358354028,1744980643417,-500.0,0.00069992,120]
[358354030,1744980643426,-454.8359678,0.00069992,120]
[358354032,1744980643435,-500.0,0.00069992,120]
[358354033,1744980643444,-466.58123436,0.00069992,120]
[358354036,1744980643460,-1350.98876564,0.00069992,120]
[358354038,1744980643470,-500.0,0.00069992,120]
[358354040,1744980643479,-600.0,0.00069992,120]
[358354042,1744980643489,-612.43129338,0.00069992,14]
[358354044,1744980643498,-500.0,0.00069992,120]
[358354046,1744980643507,-701.4,0.00069992,120]
[358354047,1744980643516,-500.0,0.00069992,120]
[358354048,1744980643526,-500.0,0.00069992,120]
[358354049,1744980643535,-500.0,0.00069992,120]
[358354050,1744980643544,-500.0,0.00069992,120]
[358354051,1744980643554,-601.29673482,0.00069992,120]
[358354052,1744980643562,-500.0,0.00069992,120]
[358354053,1744980643572,-500.0,0.00069992,120]
[358354054,1744980643585,-500.0,0.00069992,120]
[358354055,1744980643594,-771.59,0.00069992,120]
[358354056,1744980643603,-717.21,0.00069992,120]
[358354057,1744980643613,-500.0,0.00069992,120]
[358354058,1744980643623,-500.0,0.00069992,120]
[358354059,1744980643632,-500.0,0.00069992,120]
[358354060,1744980643641,-500.0,0.00069992,120]
[358354061,1744980643651,-1593.67,0.00069992,120]
[358354062,1744980643660,-500.0,0.00069992,120]
[358354063,1744980643670,-500.0,0.00069992,120]
[358354064,1744980643679,-500.0,0.00069992,120]
[358354065,1744980643689,-498.72056,0.00069992,120]
[358354066,1744980643699,-596.20281856,0.00069992,120]
[358354067,1744980643709,-500.0,0.00069992,120]
[358354068,1744980643719,-500.0,0.00069992,120]
[358354069,1744980643729,-500.0,0.00069992,120]
[358354070,1744980643739,-500.0,0.00069992,120]
[358354071,1744980643748,-500.0,0.00069992,120]
[358354072,1744980643758,-500.0,0.00069992,120]
[358354073,1744980643768,-186.81918855,0.00069992,120]
[358354074,1744980643777,-500.0,0.00069992,120]
[358354075,1744980643787,-500.0,0.00069992,120]
[358354076,1744980643797,-500.0,0.00069992,120]
[358354077,1744980643807,-1256.01,0.00069992,120]
[358354078,1744980643817,-500.0,0.00069992,120]
[358354079,1744980643827,-513.07947964,0.00069992,120]
[358354080,1744980643836,-500.0,0.00069992,120]
[358354081,1744980643846,-500.0,0.00069992,120]
[358354082,1744980643855,-500.0,0.00069992,120]
[358354083,1744980643865,-500.0,0.00069992,120]
[358354084,1744980643874,-500.0,0.00069992,120]
[358354085,1744980643884,-500.0,0.00069992,120]
[358354086,1744980643894,-500.0,0.00069992,120]
[358354087,1744980643904,-500.0,0.00069992,120]
[358354088,1744980643913,-500.0,0.00069992,120]
[358354089,1744980643923,-500.0,0.00069992,120]
[358354090,1744980643932,-498.90251685,0.00069998,120]
[358354091,1744980643942,-1000.0,0.00069999,120]
[358354092,1744980643951,-515.12284104,0.0007,120]
[358354093,1744980643961,-1035.0,0.0007,120]
[358354094,1744980643971,-490.0,0.0007,20]
[358354095,1744980643981,-1756.10000099,0.0007,120]
[358354096,1744980643990,-613.0,0.0007,120]
[358354097,1744980644000,-491.0,0.0007,120]
[358354098,1744980644010,-500.0,0.0007,120]
[358354099,1744980644019,-1922.64176313,0.0007005,15]
[358354100,1744980644028,-161.34405,0.0007012,120]
[358354101,1744980644038,-1000.0,0.00070149,120]
[358354102,1744980644048,-14747.95564139,0.0007015,2]
[358354103,1744980644058,-150.27938368,0.0007015,30]
[358354104,1744980644069,-1000.0,0.0007017,120]
[358354105,1744980644079,-1000.0,0.000702,14]
[358354106,1744980644090,-491.0,0.00070274,120]
[358354107,1744980644100,-1329.0,0.000703,14]
[358354108,1744980644110,-521.99058858,0.00070438,80]
[358354109,1744980644120,-1000.0,0.00070439,2]
[358354110,1744980644131,-88888.0,0.0007044,120]
[358354111,1744980644141,-350.0,0.00070447,120]
[358354112,1744980644151,-500.0,0.00070447,120]
[358354113,1744980644161,-500.0,0.00070447,120]
[358354114,1744980644171,-500.0,0.00070447,120]
[358354115,1744980644188,-500.0,0.00070447,120]
[358354116,1744980644198,-889.18,0.00070447,120]
[358354117,1744980644207,-500.0,0.00070447,120]
[358354118,1744980644216,-500.0,0.00070447,120]
[358354119,1744980644226,-319.27027327,0.00070452,35]
[358354120,1744980644235,-155.66498294,0.0007046,28]
[358354121,1744980644246,-1201.0371156,0.00070473,15]
[358354122,1744980644256,-6391.61,0.00070529,30]
[358354123,1744980644265,-9619.60822484,0.0007053,5]
[358354124,1744980644275,-500.0,0.00070538,120]
[358354125,1744980644285,-500.0,0.00070538,120]
[358354126,1744980644297,-526.16231909,0.00070538,120]
[358354127,1744980644307,-500.0,0.00070538,120]
[358354128,1744980644316,-500.0,0.00070538,120]
[358354129,1744980644325,-534.64244176,0.00070538,120]
[358354130,1744980644335,-500.0,0.00070538,120]
[358354131,1744980644344,-510.08178245,0.00070538,120]
[358354132,1744980644354,-500.0,0.00070538,120]
[358354133,1744980644363,-500.0,0.00070538,120]
[358354134,1744980644373,-527.32310354,0.00070538,120]
[358354135,1744980644382,-500.0,0.00070538,120]
[358354136,1744980644392,-553.56112695,0.00070538,120]
[358354137,1744980644401,-500.0,0.00070538,120]
[358354138,1744980644411,-500.0,0.00070538,120]
[358354139,1744980644420,-516.68722181,0.00070538,120]
[358354140,1744980644429,-500.0,0.00070538,120]
[358354141,1744980644438,-602.39287242,0.00070538,120]
[358354142,1744980644448,-597.75439246,0.00070538,120]
[358354143,1744980644458,-500.0,0.00070538,120]
[358354144,1744980644467,-500.0,0.00070538,120]
[358354145,1744980644477,-250.0,0.00070538,120]
[358354146,1744980644486,-500.0,0.00070538,120]
[358354147,1744980644496,-500.0,0.00070538,120]
[358354148,1744980644506,-517.04748036,0.00070538,120]
[358354149,1744980644515,-500.0,0.00070538,120]
[358354150,1744980644525,-500.0,0.00070538,120]
[358354151,1744980644535,-500.0,0.00070538,7]
[358354152,1744980644544,-500.0,0.00070538,120]
[358354153,1744980644554,-507.50914787,0.00070538,120]
[358354154,1744980644564,-500.0,0.00070538,120]
[358354155,1744980644574,-512.7036099,0.00070538,120]
[358354156,1744980644583,-500.0,0.00070538,120]
[358354157,1744980644593,-500.0,0.00070538,120]
[358354158,1744980644603,-519.566646,0.00070538,120]
[358354159,1744980644612,-500.0,0.00070538,120]
[358354160,1744980644621,-514.30053028,0.00070538,120]
[358354161,1744980644631,-509.51574304,0.00070538,120]
[358354162,1744980644641,-1000.0,0.00070538,120]
[358354163,1744980644651,-500.0,0.00070538,120]
[358354164,1744980644662,-500.0,0.00070538,120]
[358354165,1744980644672,-500.0,0.00070538,120]
[358354166,1744980644682,-500.0,0.00070538,120]
[358354167,1744980644692,-500.0,0.00070538,120]
[358354168,1744980644703,-500.0,0.00070538,120]
[358354169,1744980644713,-500.0,0.00070538,120]
[358354170,1744980644722,-500.0,0.00070538,120]
[358354171,1744980644732,-500.0,0.00070538,120]
[358354172,1744980644742,-500.0,0.00070538,120]
[358354173,1744980644751,-500.0,0.00070538,120]
[358354174,1744980644761,-500.0,0.00070538,120]
[358354175,1744980644771,-500.0,0.00070538,120]
[358354176,1744980644781,-500.0,0.00070538,2]
[358354177,1744980644791,-500.0,0.00070538,120]
[358354178,1744980644800,-500.0,0.00070538,120]
[358354179,1744980644810,-500.0,0.00070538,120]
[358354180,1744980644820,-500.0,0.00070538,120]
[358354181,1744980644830,-500.0,0.00070538,120]
[358354182,1744980644839,-500.0,0.00070538,120]
[358354183,1744980644849,-500.0,0.00070538,120]
[358354184,1744980644859,-500.0,0.00070538,120]
[358354185,1744980644868,-500.0,0.00070538,120]
[358354186,1744980644878,-500.0,0.00070538,120]
[358354187,1744980644887,-500.0,0.00070538,120]
[358354188,1744980644896,-507.03726267,0.00070538,120]
[358354189,1744980644906,-500.0,0.00070538,120]
[358354190,1744980644916,-542.08292134,0.00070538,120]
[358354191,1744980644925,-500.0,0.00070538,120]
[358354192,1744980644934,-500.0,0.00070538,120]
[358354193,1744980644944,-500.0,0.00070538,120]
[358354194,1744980644953,-500.0,0.00070538,120]
[358354195,1744980644963,-500.0,0.00070538,120]
[358354196,1744980644972,-500.0,0.00070538,120]
[358354197,1744980644982,-500.0,0.00070538,120]
[358354198,1744980644991,-500.0,0.00070538,120]
[358354199,1744980645001,-500.0,0.00070538,120]
[358354200,1744980645011,-1176.9,0.00070538,2]
[358354201,1744980645020,-500.0,0.00070538,120]
[358354202,1744980645029,-923.69,0.00070538,120]
[358354203,1744980645039,-500.0,0.00070538,120]
[358354204,1744980645048,-500.0,0.00070538,120]
[358354205,1744980645057,-500.0,0.00070538,120]
[358354206,1744980645067,-500.0,0.00070538,120]
[358354207,1744980645077,-500.0,0.00070538,120]
[358354208,1744980645087,-500.0,0.00070538,120]
[358354209,1744980645097,-500.0,0.00070538,120]
[358354210,1744980645107,-500.0,0.00070538,120]
[358354211,1744980645116,-500.0,0.00070538,120]
[358354212,1744980645126,-500.0,0.00070538,120]
[358354213,1744980645135,-518.80982059,0.00070538,120]
[358354214,1744980645145,-500.0,0.00070538,120]
[358354215,1744980645155,-500.0,0.00070538,120]
[358354216,1744980645165,-500.0,0.00070538,120]
[358354217,1744980645174,-500.0,0.00070538,120]
[358354218,1744980645183,-500.0,0.00070538,120]
[358354219,1744980645193,-445.0963017,0.00070538,120]
[358354220,1744980645203,-507.64,0.00070538,120]
[358354221,1744980645212,-500.0,0.00070538,120]
[358354222,1744980645222,-500.0,0.00070538,120]
[358354223,1744980645231,-500.0,0.00070538,120]
[358354224,1744980645241,-500.0,0.00070538,120]
[358354225,1744980645252,-500.0,0.00070538,120]
[358354226,1744980645262,-500.0,0.00070538,120]
[358354227,1744980645271,-500.0,0.00070538,120]
[358354228,1744980645281,-500.0,0.00070538,120]
[358354229,1744980645295,-500.0,0.00070538,120]
[358354230,1744980645304,-500.0,0.00070538,120]
[358354231,1744980645314,-500.0,0.00070538,120]
[358354232,1744980645323,-500.0,0.00070538,120]
[358354233,1744980645334,-500.0,0.00070538,120]
[358354234,1744980645344,-500.0,0.00070538,120]
[358354235,1744980645354,-500.0,0.00070538,120]
[358354236,1744980645363,-500.0,0.00070538,118]
[358354237,1744980645373,-500.0,0.00070538,2]
[358354238,1744980645383,-500.0,0.00070538,120]
[358354239,1744980645393,-500.0,0.00070538,2]
[358354240,1744980645402,-500.0,0.00070539,120]
[358354241,1744980645412,-6899.16,0.00070539,120]
[358354242,1744980645421,-500.0,0.00070539,120]
[358354243,1744980645431,-1616.13,0.00070539,120]
[358354244,1744980645440,-909.82,0.00070539,120]
[358354245,1744980645449,-500.0,0.00070539,120]
[358354246,1744980645459,-500.0,0.00070539,120]
[358354247,1744980645468,-500.0,0.00070539,120]
[358354248,1744980645478,-880.87,0.00070539,120]
[358354249,1744980645488,-500.0,0.00070539,120]
[358354250,1744980645497,-290.77970018,0.00070539,120]
[358354251,1744980645506,-500.0,0.00070539,120]
[358354252,1744980645516,-500.0,0.00070539,120]
[358354253,1744980645525,-500.0,0.00070539,120]
[358354254,1744980645535,-500.0,0.00070539,120]
[358354255,1744980645545,-500.0,0.00070539,120]
[358354256,1744980645554,-500.0,0.00070539,120]
[358354260,1744980645700,-500.0,0.00070539,120]
[358354261,1744980645711,-500.0,0.00070539,120]
[358354262,1744980645721,-500.0,0.00070539,120]
[358354263,1744980645730,-500.0,0.00070539,120]
[358354264,1744980645740,-601.09985048,0.00070539,120]
[358354265,1744980645750,-500.0,0.00070539,120]
[358354266,1744980645760,-500.0,0.00070539,120]
[358354267,1744980645769,-500.0,0.00070539,120]
[358354268,1744980645779,-500.0,0.00070539,120]
[358354269,1744980645788,-500.0,0.00070539,120]
[358354270,1744980645798,-500.0,0.00070539,120]
[358354271,1744980645808,-500.0,0.00070539,120]
[358354272,1744980645818,-500.0,0.00070539,120]
[358354273,1744980645827,-500.0,0.00070539,120]
[358354274,1744980645836,-500.0,0.00070539,120]
[358354275,1744980645846,-21840.49,0.00070539,7]
[358354276,1744980645855,-500.0,0.00070539,120]
[358354277,1744980645865,-500.0,0.00070539,120]
[358354278,1744980645875,-500.0,0.00070539,120]
[358354279,1744980645885,-623.69,0.00070539,120]
[358354280,1744980645894,-500.0,0.00070539,120]
[358354281,1744980645903,-500.0,0.00070539,120]
[358354282,1744980645913,-500.0,0.00070539,120]
[358354283,1744980645922,-500.0,0.00070539,120]
[358354284,1744980645931,-656.11,0.00070539,120]
[358354285,1744980645940,-500.0,0.00070539,120]
[358354286,1744980645950,-500.0,0.00070539,120]
[358354287,1744980645959,-500.0,0.00070539,120]
[358354288,1744980645969,-500.0,0.00070539,120]
[358354289,1744980645979,-500.0,0.00070539,120]
[358354290,1744980645988,-500.0,0.00070539,120]
[358354291,1744980645997,-500.0,0.00070539,120]
[358354292,1744980646008,-500.0,0.00070539,120]
[358354293,1744980646018,-500.0,0.00070539,120]
[358354294,1744980646028,-500.0,0.00070539,120]
[358354295,1744980646038,-500.0,0.00070539,120]
[358354296,1744980646047,-500.0,0.00070539,120]
[358354297,1744980646057,-500.0,0.00070539,120]
[358354298,1744980646067,-500.0,0.00070539,120]
[358354299,1744980646079,-500.0,0.00070539,120]
[358354300,1744980646088,-500.0,0.00070539,120]
[358354301,1744980646098,-500.0,0.00070539,120]
[358354302,1744980646107,-592.02856179,0.00070539,120]
[358354303,1744980646118,-500.0,0.00070539,120]
[358354304,1744980646128,-500.0,0.00070539,120]
[358354305,1744980646137,-500.0,0.00070539,120]
[358354306,1744980646147,-500.0,0.00070539,120]
[358354307,1744980646156,-500.0,0.00070539,120]
[358354308,1744980646165,-500.0,0.00070539,120]
[358354309,1744980646175,-7383.25,0.00070539,120]
[358354310,1744980646185,-500.0,0.00070539,120]
[358354311,1744980646194,-487.06101953,0.00070539,120]
[358354312,1744980646203,-500.0,0.00070539,120]
[358354313,1744980646213,-500.0,0.00070539,120]
[358354314,1744980646227,-518.15319988,0.00070539,120]
[358354315,1744980646237,-500.0,0.00070539,120]
[358354316,1744980646246,-500.0,0.00070539,120]
[358354317,1744980646256,-500.0,0.00070539,120]
[358354318,1744980646266,-500.0,0.00070539,120]
[358354319,1744980646275,-514.34203991,0.00070539,120]
[358354320,1744980646285,-500.0,0.00070539,120]
[358354321,1744980646298,-500.0,0.00070539,120]
[358354322,1744980646307,-500.0,0.00070539,120]
[358354323,1744980646316,-500.0,0.00070539,120]
[358354324,1744980646326,-500.0,0.00070539,120]
[358354325,1744980646337,-500.0,0.00070539,30]
[358354326,1744980646346,-500.0,0.00070539,120]
[358354327,1744980646356,-500.0,0.00070539,120]
[358354328,1744980646367,-541.49473023,0.00070539,120]
[358354329,1744980646376,-500.0,0.00070539,120]
[358354330,1744980646386,-500.0,0.00070539,120]
[358354331,1744980646395,-545.17704875,0.00070539,120]
[358354332,1744980646404,-500.0,0.00070539,120]
[358354333,1744980646414,-500.0,0.00070539,120]
[358354334,1744980646424,-500.0,0.00070539,120]
[358354335,1744980646433,-500.0,0.00070539,120]
[358354336,1744980646444,-500.0,0.00070539,120]
[358354337,1744980646454,-500.0,0.00070539,120]
[358354338,1744980646464,-500.0,0.00070539,8]
[358354339,1744980646473,-858.69,0.00070539,120]
[358354340,1744980646483,-500.0,0.00070539,120]
[358354341,1744980646492,-603.4057803,0.00070539,120]
[358354342,1744980646503,-500.0,0.00070539,120]
[358354343,1744980646513,-500.0,0.00070539,120]
[358354344,1744980646523,-2000.0,0.00070539,120]
[358354345,1744980646533,-500.0,0.00070539,120]
[358354346,1744980646543,-183.09539843,0.00070539,120]
[358354347,1744980646552,-500.0,0.0007054,2]
[358354348,1744980646562,-500.0,0.0007054,120]
[358354349,1744980646571,-1000.0,0.0007054,120]
[358354350,1744980646581,-500.0,0.0007054,120]
[358354351,1744980646591,-500.0,0.0007054,120]
[358354352,1744980646600,-500.0,0.0007054,120]
[358354353,1744980646610,-599.53202053,0.0007054,120]
[358354354,1744980646619,-500.0,0.0007054,120]
[358354355,1744980646628,-500.0,0.0007054,120]
[358354356,1744980646637,-550.10000762,0.0007054,120]
[358354357,1744980646647,-535.3198721,0.0007054,120]
[358354358,1744980646657,-500.0,0.0007054,120]
[358354359,1744980646667,-500.0,0.0007054,120]
[358354360,1744980646677,-1817.57,0.0007054,120]
[358354361,1744980646687,-500.0,0.0007054,120]
[358354362,1744980646698,-300.0,0.0007054,120]
[358354363,1744980646707,-500.0,0.0007054,120]
[358354364,1744980646717,-701.4,0.0007054,120]
[358354365,1744980646726,-500.0,0.0007054,120]
[358354366,1744980646736,-500.0,0.0007054,120]
[358354367,1744980646746,-500.0,0.0007054,120]
[358354368,1744980646757,-500.0,0.0007054,120]
[358354369,1744980646766,-500.0,0.0007054,120]
[358354370,1744980646776,-500.0,0.0007054,120]
[358354371,1744980646786,-771.59,0.0007054,120]
[358354372,1744980646796,-717.21,0.0007054,120]
[358354373,1744980646806,-541.74343128,0.0007054,120]
[358354374,1744980646816,-194.86866157,0.0007054,120]
[358354375,1744980646825,-1593.67,0.0007054,120]
[358354376,1744980646835,-500.0,0.0007054,120]
[358354377,1744980646844,-500.0,0.0007054,120]
[358354378,1744980646854,-613.54112001,0.0007054,120]
[358354379,1744980646864,-500.0,0.0007054,120]
[358354380,1744980646874,-500.0,0.0007054,120]
[358354381,1744980646883,-500.0,0.0007054,120]
[358354382,1744980646894,-310.46647105,0.0007054,120]
[358354383,1744980646903,-500.0,0.0007054,120]
[358354384,1744980646913,-500.0,0.0007054,120]
[358354385,1744980646923,-1256.01,0.0007054,120]
[358354386,1744980646932,-500.0,0.0007054,120]
[358354387,1744980646942,-500.0,0.0007054,120]
[358354388,1744980646951,-500.0,0.0007054,120]
[358354389,1744980646961,-500.0,0.0007054,120]
[358354390,1744980646970,-500.0,0.0007054,120]
[358354391,1744980646980,-500.0,0.0007054,120]
[358354392,1744980646989,-500.0,0.0007054,120]
[358354393,1744980646999,-500.0,0.0007054,120]
[358354394,1744980647009,-500.0,0.0007054,120]
[358354395,1744980647019,-500.0,0.0007054,120]
[358354396,1744980647028,-500.0,0.0007054,120]
[358354397,1744980647037,-491.0,0.00070548,120]
[358354398,1744980647047,-2404.90205621,0.00070563,5]
[358354399,1744980647056,-501.87414195,0.00070573,5]
[358354400,1744980647066,-500.0,0.00070573,15]
[358354401,1744980647075,-623.44890813,0.00070573,15]
[358354402,1744980647085,-500.0,0.00070573,15]
[358354403,1744980647095,-500.0,0.00070573,15]
[358354404,1744980647104,-161.88,0.00070609,2]
[358354405,1744980647113,-319.27027327,0.00070969,35]
[358354406,1744980647123,-2404.90205621,0.00070977,6]
[358354407,1744980647132,-2404.90205621,0.00070985,6]
[358354408,1744980647141,-732.30507784,0.00070987,42]
[358354409,1744980647151,-350.0,0.00070995,120]
[358354410,1744980647160,-437.07730486,0.00070995,120]
[358354411,1744980647170,-500.0,0.00070995,120]
[358354412,1744980647179,-500.0,0.00070995,120]
[358354413,1744980647188,-500.0,0.00070995,120]
[358354414,1744980647198,-889.18,0.00070995,120]
[358354415,1744980647207,-500.0,0.00070995,120]
[358354416,1744980647215,-680.0,0.00071,120]
[358354417,1744980647224,-503.89381108,0.00071073,15]
[358354418,1744980647234,-500.0,0.00071073,15]
[358354419,1744980647243,-500.0,0.00071073,14]
[358354420,1744980647252,-500.0,0.00071073,15]
[358354421,1744980647261,-500.0,0.00071073,15]
[358354422,1744980647270,-500.0,0.00071073,15]
[358354423,1744980647279,-501.39724127,0.00071073,14]
[358354424,1744980647292,-500.0,0.00071073,15]
[358354425,1744980647302,-7214.70616863,0.00071076,6]
[358354426,1744980647312,-43288.2370118,0.00071077,6]
[358354427,1744980647321,-12024.510281,0.00071078,6]
[358354428,1744980647332,-500.0,0.00071086,120]
[358354429,1744980647342,-422.61256645,0.00071086,120]
[358354430,1744980647352,-500.0,0.00071086,120]
[358354431,1744980647362,-500.0,0.00071086,120]
[358354432,1744980647371,-500.0,0.00071086,120]
[358354433,1744980647381,-500.0,0.00071086,120]
[358354434,1744980647391,-500.0,0.00071086,120]
[358354435,1744980647401,-500.0,0.00071086,120]
[358354436,1744980647410,-500.0,0.00071086,120]
[358354437,1744980647419,-250.0,0.00071086,120]
[358354438,1744980647429,-500.0,0.00071086,120]
[358354439,1744980647439,-500.0,0.00071086,120]
[358354440,1744980647448,-500.0,0.00071086,120]